bitfinex-derivatives/quotes_ETHF0:USTF0_20250804
["timestamp","ask_amount","ask_price","bid_price","bid_amount"]
[1754345882848,57.331,3728.1,3728.0,2.67444]
[1754345883150,57.331,3728.1,3728.0,2.138]
[1754345883449,57.331,3728.1,3728.0,0.8276]
[1754345883842,60.5388,3728.1,3728.0,0.4067]
[1754345885247,0.53647,3727.8,3727.6,0.9945]
[1754345885449,18.692,3727.7,3727.6,0.6936]
[1754345885748,0.53656,3727.2,3727.0,3.4805]
[1754345885951,18.691,3727.1,3727.0,0.6936]
[1754345886453,18.691,3727.1,3727.0,1.1003]
[1754345887152,18.691,3727.1,3727.0,1.6792]
[1754345887352,18.691,3727.1,3727.0,2.138]
[1754345888252,3.2078,3727.3,3727.2,2.138]
[1754345888555,21.8988,3727.3,3727.2,2.138]
[1754345888757,21.8968,3727.3,3727.2,2.138]
[1754345888950,18.2254,3727.3,3727.2,5.3458]
[1754345890256,0.53648,3727.8,3727.6,1.3881]
[1754345890556,19.4494,3727.7,3727.6,1.3881]
[1754345890952,19.4494,3727.7,3727.6,2.6745]
[1754345891855,19.4494,3727.7,3727.6,1.3641]
[1754345892254,19.4494,3727.7,3727.6,2.23022655]
[1754345892453,19.4494,3727.7,3727.6,2.68902655]
[1754345893353,18.9924,3727.7,3727.6,2.68902655]
[1754345893855,0.3024,3727.7,3727.6,2.68902655]
[1754345894157,18.9894,3727.7,3727.6,2.68902655]
[1754345894852,3.2078,3728.0,3727.9,2.138]
[1754345895156,3.37808039,3728.0,3727.9,2.138]
[1754345895357,22.06308039,3728.0,3727.9,2.15252655]
[1754345895555,18.85528039,3728.0,3727.9,2.15252655]
[1754345895757,18.85529757,3728.0,3727.9,2.15252655]
[1754345896248,3.2078,3728.8,3728.3,1.7171]
[1754345896553,0.86517809,3728.7,3728.6,1.7171]
[1754345896760,18.684,3728.8,3728.7,1.38794]
[1754345896954,19.54906942,3728.8,3728.7,2.67434]
[1754345897253,18.85426251,3728.8,3728.7,2.67434]
[1754345897557,18.85426251,3728.8,3728.7,2.68886655]
[1754345897558,18.684,3728.8,3728.7,2.68886655]
[1754345897852,38.627,3729.3,3729.2,0.8276]
[1754345898051,3.2078,3729.6,3729.5,2.39622]
[1754345898255,4.07236895,3729.6,3729.5,2.67422]
[1754345898557,21.8898,3729.6,3729.5,2.68874655]
[1754345898959,0.83858,3729.8,3729.7,1.3878]
[1754345899154,18.9834,3729.8,3729.7,2.138]
[1754345899357,0.7594,3729.8,3729.7,2.15252655]
[1754345899856,19.4404,3729.8,3729.7,2.15252655]
[1754345900557,18.681,3729.8,3729.7,2.15252655]
[1754345901360,19.4404,3729.8,3729.7,2.15252655]
[1754345902260,0.7594,3729.8,3729.7,2.15252655]
[1754345902455,19.4374,3729.8,3729.7,2.15252655]
[1754345903660,19.4374,3729.8,3729.7,0.01452655]
[1754345903855,0.99328,3729.1,3729.0,2.138]
[1754345904055,19.21028,3729.1,3729.0,2.138]
[1754345904255,19.96968,3729.1,3729.0,2.138]
[1754345904456,19.96968,3729.1,3729.0,1.6792]
[1754345907164,0.53636,3728.6,3728.5,1.1003]
[1754345907459,19.96776,3728.6,3728.5,2.138]
[1754345907658,19.96776,3728.6,3728.5,1.4391]
[1754345907856,19.96776,3728.6,3728.5,2.138]
[1754345908259,18.672,3728.6,3728.5,2.138]
[1754345908855,0.53634,3728.7,3728.5,0.8516]
[1754345909056,0.53634,3728.7,3728.6,2.138]
[1754345909257,19.20634,3728.7,3728.6,2.138]
[1754345909950,19.96574,3728.7,3728.6,2.138]
[1754345910664,3.74404,3729.4,3729.3,0.8516]
[1754345910865,3.74404,3729.4,3729.3,2.138]
[1754345911159,3.2078,3729.4,3729.3,2.138]
[1754345911354,3.5102,3729.4,3729.3,1.6792]
[1754345911558,22.6267,3729.4,3729.3,0.4067]
[1754345911961,21.8768,3729.4,3729.0,1.35219]
[1754345912262,18.668,3729.3,3729.2,2.0295]
[1754345912458,3.74405,3729.4,3729.2,2.0295]
[1754345912459,3.2078,3729.4,3729.3,0.53625]
[1754345912658,21.8758,3729.4,3729.3,2.56575]
[1754345913358,22.6201,3729.4,3729.3,1.5951]
[1754345913565,22.6201,3729.4,3729.3,1.3156]
[1754345914359,22.6201,3729.4,3729.3,0.3998]
[1754345914960,22.6201,3729.4,3729.3,0.7813]
[1754345915157,22.6201,3729.4,3729.3,1.3156]
[1754345915363,22.6201,3729.4,3729.3,1.5951]
[1754345916370,0.2968,3729.1,3729.0,1.74989]
[1754345916568,19.4093,3729.1,3729.0,2.13139]
[1754345916968,19.4093,3729.1,3729.0,1.5951]
[1754345917170,3.2078,3729.4,3729.3,1.1953]
[1754345917171,3.5046,3729.4,3729.3,1.1953]
[1754345917467,22.6161,3729.4,3729.3,2.0295]
[1754345919566,19.4083,3729.4,3729.3,2.0295]
[1754345920570,1.28051,3729.6,3729.5,1.6297]
[1754345920765,19.4063,3729.6,3729.5,1.6297]
[1754345921071,19.4053,3729.6,3729.5,2.0295]
[1754345921271,0.7443,3729.6,3729.5,2.0295]
[1754345921468,19.4053,3729.6,3729.5,2.0295]
[1754345921667,0.2968,3729.6,3729.5,2.0295]
[1754345921868,3.2078,3729.8,3729.7,2.0295]
[1754345922069,21.8678,3729.8,3729.7,2.0295]
[1754345923770,3.2078,3729.8,3729.7,2.0295]
[1754345923970,21.8668,3729.8,3729.7,2.0295]
[1754345925072,21.8658,3729.8,3729.7,2.0295]
[1754345925376,22.03607998,3729.8,3729.7,2.0295]
[1754345926071,22.78038097,3729.8,3729.7,2.0295]
[1754345926468,0.2968,3729.6,3729.5,1.5951]
[1754345926672,19.4003,3729.6,3729.5,2.0295]
[1754345926868,19.4003,3729.6,3729.0,1.3501]
[1754345926869,0.2968,3729.1,3729.0,1.3501]
[1754345927079,18.656,3729.2,3729.0,2.5658]
[1754345927276,3.6553,3729.8,3729.1,2.0295]
[1754345927469,3.6553,3729.8,3729.0,0.5363]
[1754345927470,18.82643,3729.7,3729.6,2.0295]
[1754345927773,19.4003,3729.7,3729.6,0.3998]
[1754345927973,19.57071704,3729.7,3729.6,0.3998]
[1754345928166,19.57071704,3729.7,3729.6,1.0436]
[1754345928372,19.57071704,3729.7,3729.6,1.3156]
[1754345928975,19.57071704,3729.7,3729.6,0.3998]
[1754345929872,0.7443,3729.4,3729.3,0.3998]
[1754345930072,3.2078,3729.4,3728.6,0.9158]
[1754345930273,18.653,3729.3,3729.2,1.6297]
[1754345930472,19.3973,3729.3,3729.2,1.6297]
[1754345930672,19.3973,3729.3,3729.2,2.0295]
[1754345931165,19.3973,3729.3,3729.2,1.5951]
[1754345932171,19.3973,3729.3,3729.2,2.0295]
[1754345932678,18.653,3729.3,3729.2,2.0295]
[1754345933680,4.19148,3729.8,3729.7,0.8138]
[1754345933978,22.02922591,3729.8,3729.7,2.0295]
[1754345934174,4.12252591,3729.8,3729.7,2.0295]
[1754345934376,22.32602591,3729.8,3729.7,2.0295]
[1754345934773,22.77352591,3729.8,3729.7,2.0295]
[1754345934980,3.37822591,3729.8,3729.7,2.0295]
[1754345935276,22.02922591,3729.8,3729.7,2.0295]
[1754345936075,3.37822591,3729.8,3729.7,2.0295]
[1754345936276,22.02922591,3729.8,3729.7,2.0295]
[1754345936474,3.37822591,3729.8,3729.7,2.0295]
[1754345936876,22.02822591,3729.8,3729.7,2.0295]
[1754345937075,21.8578,3729.8,3729.7,2.0295]
[1754345937276,22.6021,3729.8,3729.7,2.0295]
[1754345939877,22.6021,3729.8,3729.7,0.7813]
[1754345940078,22.6021,3729.8,3729.7,1.5951]
[1754345940278,22.6021,3729.8,3729.7,2.0295]
[1754345940982,23.29798574,3729.8,3729.7,2.0295]
[1754345941282,22.6021,3729.8,3729.7,2.0295]
[1754345941971,3.2078,3729.8,3729.7,2.0295]
[1754345942282,21.8538,3729.8,3729.7,2.0295]
[1754345942581,22.5744,3729.8,3729.7,2.0295]
[1754345943078,22.5744,3729.8,3729.7,1.5951]
[1754345943274,22.7448671,3729.8,3729.7,0.3998]
[1754345943483,1.25682,3729.6,3729.5,0.91622]
[1754345943680,19.90182,3729.6,3729.5,2.13032]
[1754345943983,19.90182,3729.6,3729.5,2.57922]
[1754345944182,0.7206,3729.2,3729.1,1.663]
[1754345944380,19.3656,3729.2,3729.1,1.663]
[1754345944778,19.3656,3729.2,3729.1,2.043]
[1754345944977,19.3656,3729.2,3729.1,2.57928]
[1754345945180,19.3656,3729.2,3729.1,2.13038]
[1754345945682,19.3656,3729.2,3729.1,2.57928]
[1754345946982,19.3656,3729.2,3729.1,1.5941]
[1754345947179,19.3656,3729.2,3729.1,2.043]
[1754345947581,19.3656,3729.2,3729.1,0.38]
[1754345947778,0.7206,3729.0,3728.9,0.5363]
[1754345947982,19.3636,3729.0,3728.9,1.3047]
[1754345948285,19.3636,3729.0,3728.9,1.0402]
[1754345948575,19.3636,3729.0,3728.9,1.3049]
[1754345948782,19.3636,3729.0,3728.9,1.5941]
[1754345948977,18.643,3729.0,3728.7,0.53634]
[1754345949180,0.53632,3728.8,3728.7,1.5941]
[1754345949376,0.4314,3729.0,3728.9,0.7381]
[1754345949574,19.89991,3729.0,3728.9,0.2647]
[1754345949877,0.53633,3728.8,3728.6,2.13044]
[1754345950178,18.642,3728.7,3728.6,1.81094]
[1754345950678,0.53628,3729.2,3729.1,1.36198]
[1754345950879,4.54837,3729.6,3729.3,0.8257]
[1754345950880,0.53625,3729.4,3729.3,0.8257]
[1754345951082,19.34876641,3729.4,3729.3,2.043]
[1754345951482,19.78016674,3729.4,3729.3,2.043]
[1754345951680,20.06936674,3729.4,3729.3,2.043]
[1754345952181,18.81251674,3729.4,3728.8,0.38]
[1754345952383,0.17051674,3729.3,3729.2,1.7783]
[1754345952583,3.2078,3729.6,3729.4,2.57922]
[1754345952882,19.3626,3729.5,3729.4,2.043]
[1754345953287,19.3626,3729.5,3729.4,1.5941]
[1754345953688,3.9284,3729.7,3729.6,0.7381]
[1754345953987,19.53206483,3729.7,3729.6,2.043]
[1754345954183,18.81146483,3729.7,3729.6,2.043]
[1754345954388,18.81145878,3729.7,3729.6,2.043]
[1754345954581,1.25682,3729.5,3729.4,0.53623]
[1754345954785,1.25682,3729.5,3729.4,0.38]
[1754345954986,1.25682,3729.5,3729.4,1.0402]
[1754345955186,1.25682,3729.5,3729.4,1.3049]
[1754345956789,1.25682,3729.5,3729.4,1.5941]
[1754345956990,1.25682,3729.5,3729.4,2.043]
[1754345958996,0.7206,3729.5,3729.4,2.043]
[1754345959993,0.2892,3729.5,3729.4,2.043]
[1754345960188,1.7206,3730.0,3729.9,2.043]
[1754345960393,21.22557614,3730.0,3729.9,2.043]
[1754345960794,1.86697614,3730.0,3729.9,2.043]
[1754345960994,19.8084618,3730.0,3729.9,2.043]
[1754345961494,1.1704618,3730.0,3729.9,2.043]
[1754345961898,0.17042513,3730.3,3730.2,0.8257]
[1754345962095,18.80742513,3730.3,3730.2,2.043]
[1754345962300,18.80742513,3730.3,3730.2,2.57912]
[1754345962592,3.2078,3730.5,3730.4,2.57909]
[1754345962797,0.17037957,3730.5,3730.4,2.57909]
[1754345963000,18.637,3730.6,3730.4,1.36179]
[1754345963200,1.1261,3731.1,3731.0,0.5365]
[1754345963395,0.17035728,3731.1,3731.0,2.043]
[1754345963600,3.2078,3731.3,3731.1,2.57899]
[1754345963801,18.636,3731.2,3731.1,2.57899]
[1754345964193,3.2078,3731.8,3731.1,1.33999]
[1754345964399,19.50090655,3731.7,3731.6,2.043]
[1754345964603,19.93121546,3731.7,3731.6,2.043]
[1754345964802,18.80511546,3731.7,3731.6,1.2746]
[1754345964993,3.6392,3732.6,3732.5,0.53579]
[1754345965292,2.4853656,3733.0,3732.5,0.53579]
[1754345965293,0.96681344,3732.9,3732.5,3.2078]
[1754345965492,0.96681344,3732.9,3731.5,38.602]
[1754345965493,1.33952,3732.5,3732.0,3.2078]
[1754345965697,1.2417,3731.7,3731.4,0.53595]
[1754345965897,1.2417,3731.7,3731.4,1.05385]
[1754345965898,1.0591,3731.5,3731.4,1.05385]
[1754345966094,0.4065,3731.5,3731.4,1.05385]
[1754345966599,0.8208,3732.4,3732.0,0.53586]
[1754345966799,0.6644,3732.1,3732.0,0.5179]
[1754345966998,0.5524,3731.5,3731.4,3.99575]
[1754345967199,2.0376,3731.5,3731.4,3.2078]
[1754345968097,1.2273,3731.4,3731.0,3.2078]
[1754345968299,2.57364,3730.8,3730.6,3.2078]
[1754345968500,2.0376,3730.7,3730.6,3.2078]
[1754345968903,2.0376,3730.1,3730.0,3.2078]
[1754345969208,1.6062,3729.8,3729.7,0.5179]
[1754345969405,2.0376,3729.8,3729.7,0.5179]
[1754345969903,0.4065,3729.8,3729.7,0.5179]
[1754345970095,0.3894,3730.7,3730.3,0.2659]
[1754345970306,0.4065,3730.4,3730.3,3.4737]
[1754345970701,1.343,3730.4,3730.3,3.7257]
[1754345970901,1.6062,3730.4,3730.3,3.7257]
[1754345971096,0.4065,3730.4,3730.3,3.7257]
[1754345971700,0.4065,3730.4,3730.3,3.769]
[1754345971896,2.1385,3730.4,3730.3,3.2078]
[1754345972096,2.1385,3730.4,3730.3,3.7944]
[1754345972300,0.6772,3730.4,3730.3,3.7944]
[1754345972504,0.4065,3730.4,3730.3,3.7944]
[1754345972702,0.4191,3730.3,3730.0,0.53615]
[1754345972904,2.1511,3730.1,3729.9,3.74396]
[1754345973111,2.1511,3730.0,3729.9,3.74396]
[1754345973412,1.695,3730.0,3729.9,3.2078]
[1754345973702,2.1511,3730.0,3729.9,3.2078]
[1754345973909,0.8559,3729.6,3729.5,3.2078]
[1754345974108,2.1511,3729.6,3729.5,3.2078]
[1754345974308,2.1511,3729.2,3729.1,3.2078]
[1754345974907,0.4191,3729.2,3729.1,4.33068]
[1754345975708,1.1098,3729.2,3729.1,4.33068]
[1754345975909,1.4138,3729.2,3729.1,4.33068]
[1754345976106,2.1511,3729.2,3729.1,4.05138]
[1754345976506,2.1511,3729.2,3729.1,4.33068]
[1754345977109,2.1511,3729.2,3729.1,3.2078]
[1754345977510,1.732,3728.8,3728.7,3.2078]
[1754345977806,2.1511,3728.8,3728.7,3.2078]
[1754345978416,1.275,3728.4,3728.3,3.2078]
[1754345978713,2.1511,3728.4,3728.3,3.2078]
[1754345979313,2.1511,3728.1,3728.0,0.53643]
[1754345979609,0.6898,3728.1,3728.0,1.84153]
[1754345980006,3.74408,3729.1,3728.0,2.64619]
[1754345980208,0.4191,3728.5,3728.4,1.84148]
[1754345980412,2.1511,3728.5,3728.4,0.53638]
[1754345981006,2.1511,3728.3,3728.2,3.74421]
[1754345981207,1.2952,3728.2,3728.1,0.53642]
[1754345981411,2.1511,3728.2,3728.1,0.53642]
[1754345982604,20.8191,3728.2,3728.1,0.53642]
[1754345982809,0.8559,3728.1,3727.4,3.2078]
[1754345983007,0.53653,3727.4,3727.1,0.53656]
[1754345983207,2.1511,3727.2,3727.0,3.2078]
[1754345983404,0.8559,3727.2,3727.0,3.74438]
[1754345984026,2.1511,3727.1,3727.0,3.74438]
[1754345984517,2.1511,3727.1,3727.0,3.2078]
[1754345984717,0.53656,3727.2,3726.9,0.69343729]
[1754345984718,1.23778,3727.0,3726.9,0.69343729]
[1754345985221,3.2078,3727.2,3726.0,0.3971]
[1754345985418,3.74443,3726.7,3726.2,0.3971]
[1754345985616,3.2078,3726.3,3725.7,0.4143]
[1754345985917,3.2078,3725.9,3725.8,0.3971]
[1754345986114,18.711,3726.2,3725.8,0.3971]
[1754345986420,18.716,3726.1,3726.0,0.8114]
[1754345986614,18.716,3726.1,3726.0,1.2362]
[1754345987008,18.716,3726.1,3726.0,0.3971]
[1754345987216,0.53677,3725.7,3725.5,0.3971]
[1754345987514,3.74457,3725.7,3725.4,0.3971]
[1754345988115,3.74458,3725.7,3724.8,3.2078]
[1754345988317,3.2078,3725.7,3725.5,0.4143]
[1754345988619,3.2078,3725.7,3725.6,0.3971]
[1754345988820,22.49957,3725.7,3725.6,0.3971]
[1754345989020,0.5368,3725.5,3725.2,0.8219]
[1754345989315,21.9628,3725.7,3725.1,0.8391]
[1754345989521,18.755,3725.7,3725.6,0.8114]
[1754345989713,3.7445,3726.2,3725.9,0.8219]
[1754345989918,0.53678,3725.7,3725.4,0.4248]
[1754345990220,3.2078,3725.8,3724.8,3.2078]
[1754345990419,0.53686,3725.2,3724.8,3.74469]
[1754345990718,19.29987,3725.1,3724.8,0.3971]
[1754345990921,19.29987,3725.1,3724.9,0.3971]
[1754345991120,18.763,3725.1,3724.8,0.53689]
[1754345991314,18.763,3725.1,3724.6,0.3971]
[1754345991521,3.2078,3725.0,3724.4,3.2078]
[1754345991723,0.53692,3724.7,3724.6,0.3971]
[1754345992318,0.53691,3724.8,3724.1,0.4248]
[1754345992617,18.764,3724.7,3724.6,1.77313]
[1754345993320,18.764,3724.7,3724.6,4.56663]
[1754345993622,18.764,3724.8,3724.7,2.59632]
[1754345993817,0.53694,3724.6,3724.2,0.4143]
[1754345994016,0.53696,3724.5,3724.2,0.53698]
[1754345994220,0.53696,3724.5,3724.3,1.6623]
[1754345994421,0.53696,3724.5,3724.4,0.3971]
[1754345994920,3.2078,3724.6,3724.5,0.3971]
[1754345995224,19.30091,3724.8,3724.6,0.8232]
[1754345995425,19.30091,3724.8,3724.7,0.9266]
[1754345996118,19.30091,3724.8,3724.7,0.3971]
[1754345996322,19.30091,3724.8,3724.4,0.4143]
[1754345996323,0.53694,3724.5,3724.4,0.8114]
[1754345996519,0.53694,3724.5,3724.4,0.3971]
[1754345997118,3.2078,3724.7,3724.1,0.3971]
[1754345997325,0.53693,3724.6,3724.3,0.4143]
[1754345997526,0.53693,3724.6,3724.4,1.248]
[1754345997726,0.53693,3724.6,3724.5,0.4143]
[1754345997923,0.53698,3724.3,3724.2,0.3971]
[1754345998126,19.30398,3724.3,3724.2,0.3971]
[1754345998527,3.2078,3724.7,3723.9,1.91803545]
[1754345998528,3.2078,3724.7,3724.3,0.8219]
[1754345998728,0.53687,3725.0,3724.9,0.8232]
[1754345999026,19.30087,3725.0,3724.9,2.0594]
[1754345999325,3.2078,3725.1,3724.9,2.0594]
[1754345999622,3.2078,3725.1,3725.0,2.0594]
[1754345999828,3.2078,3725.5,3725.4,1.6451]
[1754346000128,21.9768,3725.5,3725.4,2.0594]
[1754346000322,21.9828,3725.5,3725.4,1.2362]
[1754346002723,3.2078,3725.5,3725.4,1.2362]
[1754346002924,18.77,3725.6,3725.5,1.8423]
[1754346003228,18.769,3725.7,3725.6,0.8528]
[1754346003418,18.7891,3725.7,3725.6,0.8528]
[1754346003622,18.769,3725.7,3725.6,1.3055]
[1754346004227,3.2078,3725.9,3725.7,1.84227]
[1754346004521,41.8759,3726.4,3726.2,0.8786]
[1754346004726,18.763,3726.3,3726.2,0.53669]
[1754346005324,18.763,3726.3,3726.2,1.84219]
[1754346006127,18.763,3726.3,3726.2,2.67379]
[1754346006332,21.9678,3726.4,3726.3,2.1371]
[1754346006525,3.2078,3727.0,3726.9,0.5678]
[1754346006725,21.9788,3727.0,3726.9,2.6737]
[1754346006930,21.9788,3727.0,3726.9,2.1371]
[1754346007328,3.2078,3727.0,3726.9,2.1371]
[1754346007521,21.9748,3727.0,3726.9,2.1371]
[1754346008225,18.767,3727.0,3726.9,2.1371]
[1754346008431,22.0601,3727.0,3726.9,1.6844]
[1754346008831,22.0601,3727.0,3726.9,0.8528]
[1754346008832,21.9949,3727.0,3726.9,0.8528]
[1754346009028,21.9949,3727.0,3726.9,0.4259]
[1754346009325,1.34156,3726.8,3726.0,1.3055]
[1754346009627,0.5568,3726.3,3726.2,0.8528]
[1754346009931,19.2927,3726.3,3726.2,1.3055]
[1754346010125,19.3128,3726.3,3726.2,0.4259]
[1754346012529,20.00064163,3726.3,3726.2,0.4259]
[1754346012732,20.00064163,3726.3,3725.3,3.2078]
[1754346012733,0.53677,3725.7,3725.5,0.4527]
[1754346012934,0.53677,3725.7,3725.6,0.8796]
[1754346013337,0.53677,3725.7,3725.6,1.3055]
[1754346013634,0.53677,3725.7,3725.6,2.1371]
[1754346013938,0.56887,3725.7,3725.6,2.1371]
[1754346014236,4.51816198,3725.7,3725.6,0.4259]
[1754346014441,0.62214,3725.2,3725.1,2.1371]
[1754346014639,19.36914,3725.2,3725.1,2.1371]
[1754346014846,0.53691,3724.8,3724.7,0.53692]
[1754346015045,19.30801,3724.8,3724.7,1.3055]
[1754346015343,0.53688,3725.0,3724.9,1.84238]
[1754346015543,19.28788,3725.0,3724.9,0.8528]
[1754346015740,19.28788,3725.0,3724.9,1.3055]
[1754346015933,19.28788,3725.0,3724.9,0.8528]
[1754346015934,19.30798,3725.0,3724.9,0.8528]
[1754346016139,19.99659452,3725.0,3724.9,0.4259]
[1754346016342,0.55702,3724.7,3724.6,0.4259]
[1754346016544,0.53697,3724.3,3724.1,1.3055]
[1754346016843,18.7721,3724.2,3724.1,0.8528]
[1754346017145,0.537,3724.1,3723.9,0.96671545]
[1754346017335,0.0201,3723.9,3722.8,0.4259]
[1754346017534,3.2279,3723.3,3722.8,0.53719]
[1754346017739,19.47278799,3723.2,3722.9,1.3055]
[1754346017932,18.7841,3723.2,3723.0,0.4527]
[1754346018142,19.32124,3723.2,3723.1,0.8528]
[1754346018335,0.68826328,3723.2,3723.1,1.3055]
[1754346018645,19.45526328,3723.2,3723.1,1.3055]
[1754346018943,19.4752591,3723.2,3723.1,0.4259]
[1754346019142,19.4551591,3723.2,3723.1,1.3055]
[1754346019939,19.4551591,3723.2,3723.1,0.4259]
[1754346020139,19.4551591,3723.2,3723.1,0.8796]
[1754346020336,19.4551591,3723.2,3723.1,1.3055]
[1754346020940,18.767,3723.2,3723.1,1.3055]
[1754346021141,3.2078,3723.8,3723.7,0.53706]
[1754346021339,0.6868745,3723.8,3723.7,1.84256]
[1754346021543,18.795,3723.8,3723.7,1.84256]
[1754346022044,0.0215,3724.4,3724.3,1.3055]
[1754346022244,19.66020434,3724.4,3724.3,1.3055]
[1754346022443,19.48803249,3724.4,3724.3,1.3055]
[1754346022644,19.48363249,3724.4,3724.3,1.3055]
[1754346022844,18.797,3724.4,3724.3,1.3055]
[1754346023746,18.807,3724.4,3724.3,0.53697]
[1754346024038,18.807,3724.4,3724.3,1.84247]
[1754346025646,3.2078,3725.0,3724.9,0.53689]
[1754346025842,22.70738683,3725.0,3724.9,0.96279]
[1754346026035,22.68918683,3725.0,3724.9,1.84239]
[1754346026243,22.0028,3725.0,3724.9,1.84239]
[1754346028844,3.2078,3725.0,3724.9,1.84239]
[1754346029052,38.656,3725.3,3725.2,1.84234]
[1754346029248,57.435,3725.3,3725.2,1.84234]
[1754346029449,57.4532,3725.3,3725.2,0.96274]
[1754346029850,38.656,3725.3,3725.2,1.84234]
[1754346030049,3.2078,3725.7,3725.6,1.84228]
[1754346030350,21.9848,3725.7,3725.6,1.84228]
[1754346032754,18.777,3725.7,3725.6,1.84228]
[1754346033859,3.2078,3726.1,3726.0,1.78193]
[1754346034049,22.4252,3726.1,3726.0,1.78193]
[1754346034252,22.4371,3726.1,3726.0,1.78193]
[1754346035250,22.4371,3726.1,3726.0,0.3955]
[1754346035450,0.4583,3725.9,3725.8,0.3955]
[1754346035650,0.4583,3725.9,3725.4,0.3955]
[1754346035852,0.4583,3725.6,3725.5,0.53679]
[1754346036150,19.2213,3725.6,3725.5,0.93229]
[1754346036351,19.2213,3725.6,3725.5,1.32569]
[1754346036753,19.2213,3725.6,3725.5,1.78199]
[1754346037145,19.2213,3725.6,3725.5,1.32569]
[1754346037856,18.763,3725.6,3725.5,1.32569]
[1754346038156,18.763,3725.6,3725.5,1.78199]
[1754346038550,19.5076,3725.6,3725.5,1.21729]
[1754346038756,19.5385,3725.6,3725.5,0.93229]
[1754346039748,0.4583,3725.5,3725.4,0.53681]
[1754346040055,0.7755,3725.5,3725.4,1.32571]
[1754346042657,1.3123,3725.5,3725.4,1.32571]
[1754346042858,0.7565,3725.4,3725.3,0.93232]
[1754346043062,19.5065,3725.4,3725.3,0.3955]
[1754346043755,19.5065,3725.4,3725.3,2.0873]
[1754346043756,18.729,3725.4,3725.3,2.0873]
[1754346043961,3.2078,3725.7,3725.6,2.62408]
[1754346044161,21.9358,3725.7,3725.6,2.62408]
[1754346044354,22.6994,3725.7,3725.6,2.0873]
[1754346044550,22.7113,3725.7,3725.6,1.631]
[1754346044958,22.7113,3725.7,3725.6,0.3955]
[1754346045563,19.5035,3725.7,3725.6,0.3955]
[1754346045762,19.5035,3725.7,3725.6,0.7889]
[1754346046062,19.4916,3725.7,3725.6,2.0873]
[1754346046263,0.7446,3725.7,3725.6,2.0873]
[1754346046465,19.4736,3725.7,3725.6,2.0873]
[1754346047963,18.729,3725.7,3725.6,2.0873]
[1754346048261,3.9714,3726.1,3726.0,1.0542]
[1754346048461,0.7755,3725.8,3725.7,2.62406]
[1754346048660,19.4866,3725.8,3725.7,2.62406]
[1754346050562,19.4985,3725.8,3725.7,1.631]
[1754346051162,19.4985,3725.8,3725.7,2.0873]
[1754346051868,19.4866,3725.8,3725.7,2.0873]
[1754346052568,19.4766,3725.8,3725.7,2.0873]
[1754346052764,19.4766,3725.8,3725.7,0.3955]
[1754346052765,19.4885,3725.8,3725.7,0.3955]
[1754346052972,1.30044,3725.2,3725.1,1.6918]
[1754346053266,1.30044,3725.2,3725.1,1.2355]
[1754346053267,20.01534,3725.2,3725.1,1.2355]
[1754346053570,20.01534,3725.2,3725.1,1.631]
[1754346053774,20.01534,3725.2,3725.1,2.0873]
[1754346054069,20.00344,3725.2,3725.1,2.0873]
[1754346054761,20.01534,3725.2,3725.1,2.0873]
[1754346054967,20.01534,3725.2,3725.1,1.631]
[1754346055259,23.22314,3725.2,3725.1,1.3392]
[1754346055660,23.22314,3725.2,3725.1,0.3955]
[1754346055866,23.22314,3725.2,3724.7,0.6805]
[1754346055867,1.3124,3724.8,3724.7,0.6805]
[1754346056169,20.0144,3724.8,3724.7,1.0739]
[1754346056768,23.2222,3724.8,3724.7,0.3955]
[1754346056968,1.31244,3724.5,3724.4,0.3955]
[1754346057168,20.01144,3724.5,3724.4,0.3955]
[1754346057364,20.01144,3724.5,3724.4,0.7889]
[1754346057563,0.53703,3724.0,3723.8,0.3934]
[1754346057768,1.31251,3724.0,3723.9,1.631]
[1754346057964,20.01251,3724.0,3723.9,1.631]
[1754346058366,19.4636,3724.0,3723.9,2.0873]
[1754346058764,19.4636,3724.0,3723.8,0.53703]
[1754346058969,20.01252,3724.0,3723.9,1.3392]
[1754346059170,20.01252,3724.0,3723.9,1.631]
[1754346059468,20.01252,3724.0,3723.9,2.0873]
[1754346059964,20.00062,3724.0,3723.9,2.0873]
[1754346060160,0.53702,3724.0,3723.9,2.0873]
[1754346060372,18.703,3724.0,3723.9,2.0873]
[1754346060667,0.4464,3724.6,3724.5,0.285]
[1754346060869,3.74471,3724.7,3724.6,2.0873]
[1754346061071,22.59455608,3724.7,3724.6,2.0873]
[1754346061373,23.18631,3724.7,3724.6,2.0873]
[1754346061670,23.20531,3724.7,3724.6,2.0873]
[1754346061870,23.20531,3724.7,3724.6,1.631]
[1754346062168,23.20531,3724.7,3724.6,2.0537]
[1754346062566,4.50831,3724.7,3724.6,2.0537]
[1754346062872,23.20531,3724.7,3724.6,2.0537]
[1754346063571,38.647,3725.0,3724.9,2.56028]
[1754346063767,57.49364646,3725.0,3724.9,2.56028]
[1754346063965,18.84664646,3725.0,3724.9,2.56028]
[1754346064165,18.694,3725.0,3724.9,2.56028]
[1754346067171,1.52311,3724.8,3724.7,1.3217]
[1754346067471,0.9862,3724.4,3724.3,1.3217]
[1754346067670,19.6782,3724.4,3724.3,1.6007]
[1754346067971,18.692,3724.4,3724.3,2.0234]
[1754346069573,3.2078,3724.8,3724.7,2.56031]
[1754346069873,0.3909,3725.6,3725.1,2.56025]